bitfinex/quotes_BTCUSD_20240915
["timestamp","ask_amount","ask_price","bid_price","bid_amount"]
[1726421313340,0.002646,60015.0,60014.0,1.298392]
[1726421314341,0.003646,60015.0,60014.0,1.306392]
[1726421314794,0.002646,60015.0,60014.0,1.298392]
[1726421315039,0.002646,60015.0,60014.0,1.49962]
[1726421317684,0.001646,60031.0,60022.0,0.023]
[1726421317935,0.001646,60031.0,60030.0,0.499749]
[1726421318627,0.001646,60031.0,60030.0,0.832915]
[1726421318852,0.002646,60031.0,60030.0,0.832915]
[1726421319073,0.004646,60031.0,60030.0,0.832915]
[1726421319529,0.001646,60031.0,60030.0,1.166081]
[1726421319770,0.001646,60031.0,60030.0,1.171081]
[1726421320007,0.001646,60031.0,60030.0,1.194081]
[1726421320249,0.001646,60031.0,60030.0,1.199081]
[1726421320889,0.001646,60031.0,60030.0,1.24888515]
[1726421321123,0.001646,60031.0,60030.0,1.2613071]
[1726421321343,0.001646,60031.0,60030.0,1.2652662]
[1726421321562,0.001646,60031.0,60030.0,1.23673727]
[1726421322005,0.001646,60031.0,60030.0,1.38650052]
[1726421322010,0.001646,60031.0,60030.0,1.58867264]
[1726421322233,0.001646,60031.0,60030.0,1.87209317]
[1726421322457,0.001646,60031.0,60030.0,1.91682223]
[1726421322679,0.001644,60049.0,60038.0,0.333122]
[1726421322909,0.001644,60049.0,60038.0,0.54835]
[1726421323130,0.001644,60049.0,60038.0,1.414595]
[1726421323352,0.001644,60049.0,60038.0,1.877717]
[1726421323567,0.001644,60049.0,60038.0,2.25359444]
[1726421323785,0.001644,60049.0,60048.0,1.222171]
[1726421324005,0.001644,60049.0,60048.0,1.414399]
[1726421325101,0.001644,60049.0,60048.0,1.424399]
[1726421325320,0.001644,60049.0,60048.0,0.509599]
[1726421325541,0.001644,60049.0,60048.0,0.01]
[1726421326653,0.001644,60049.0,60047.0,0.166534]
[1726421327583,0.166535,60048.0,60039.0,0.333115]
[1726421327812,0.185,60047.0,60034.0,0.333142]
[1726421328022,0.185,60047.0,60032.0,0.0708305]
[1726421328023,0.468651,60042.0,60037.0,0.166562]
[1726421328251,0.3021,60042.0,60035.0,0.166568]
[1726421328532,0.166553,60041.0,60035.0,0.166568]
[1726421328748,0.3021,60042.0,60038.0,0.16656]
[1726421329602,0.46865,60042.0,60037.0,0.003]
[1726421330035,0.3021,60042.0,60037.0,0.003]
[1726421330724,0.3021,60042.0,60040.0,0.166554]
[1726421330952,0.3021,60042.0,60039.0,0.166555]
[1726421331385,0.3021,60042.0,60040.0,0.166555]
[1726421331885,0.351537,60047.0,60041.0,0.166552]
[1726421332113,0.16654,60046.0,60040.0,0.166553]
[1726421333010,0.185,60047.0,60042.0,0.166548]
[1726421333887,0.351536,60047.0,60042.0,0.166548]
[1726421334109,0.354536,60047.0,60042.0,0.166548]
[1726421334555,0.351536,60047.0,60042.0,0.166548]
[1726421335011,0.354536,60047.0,60042.0,0.166548]
[1726421335949,0.188,60047.0,60032.0,0.02116964]
[1726421336192,0.166555,60041.0,60034.0,0.333143]
[1726421336448,0.3331,60042.0,60036.0,0.166565]
[1726421336708,0.166555,60040.0,60036.0,0.166565]
[1726421336959,0.188,60047.0,60034.0,0.333142]
[1726421336960,0.166559,60039.0,60034.0,0.166569]
[1726421337224,0.166559,60039.0,60035.0,0.166569]
[1726421337460,0.166559,60039.0,60032.0,0.02116964]
[1726421337461,0.33312,60039.0,60032.0,0.02116964]
[1726421337711,0.166575,60033.0,60032.0,0.02116964]
[1726421337945,0.366375,60033.0,60032.0,0.02116964]
[1726421338183,0.166578,60032.0,60028.0,0.166588]
[1726421338435,0.166578,60032.0,60026.0,0.1]
[1726421338711,0.333157,60032.0,60024.0,0.4665]
[1726421338949,0.166587,60029.0,60024.0,0.166599]
[1726421339209,0.166587,60029.0,60025.0,0.166596]
[1726421339740,0.333171,60030.0,60024.0,0.166599]
[1726421339980,0.333158,60032.0,60025.0,0.166596]
[1726421340226,0.166584,60030.0,60025.0,0.166596]
[1726421340704,0.002,60032.0,60026.0,0.166593]
[1726421340942,0.166581,60031.0,60026.0,0.166593]
[1726421341260,0.333161,60032.0,60024.0,0.166599]
[1726421341521,0.333161,60032.0,60025.0,0.167596]
[1726421341522,0.166586,60029.0,60025.0,0.167596]
[1726421342058,0.166582,60031.0,60025.0,0.166596]
[1726421342339,0.166582,60031.0,60026.0,0.166594]
[1726421342555,0.166584,60030.0,60026.0,0.166594]
[1726421342789,0.2259382,60033.0,60026.0,0.166594]
[1726421343022,0.2259382,60033.0,60024.0,0.333196]
[1726421343023,0.3925132,60033.0,60024.0,0.333196]
[1726421343282,0.166582,60031.0,60024.0,0.333196]
[1726421343740,0.2259382,60033.0,60025.0,0.001]
[1726421343972,0.0261382,60033.0,60029.0,0.333171]
[1726421344196,0.0261382,60033.0,60030.0,0.166581]
[1726421344437,0.001,60031.0,60028.0,0.192228]
[1726421344665,0.001,60031.0,60030.0,0.358811]
[1726421344913,0.001,60031.0,60030.0,0.691976]
[1726421345152,0.0261382,60033.0,60032.0,0.832887]
[1726421345378,0.0291382,60033.0,60032.0,0.832887]
[1726421345823,0.003,60033.0,60032.0,1.189042]
[1726421346046,0.003,60033.0,60032.0,1.222442]
[1726421346295,0.003,60033.0,60032.0,1.2722222]
[1726421346956,0.003,60033.0,60032.0,1.3722222]
[1726421347217,0.2037078,60051.0,60048.0,0.166533]
[1726421347472,0.0039078,60051.0,60048.0,0.832665]
[1726421348266,0.0039078,60051.0,60048.0,1.188731]
[1726421348529,0.0039078,60051.0,60048.0,1.222131]
[1726421348976,0.002644,60049.0,60048.0,1.231131]
[1726421349414,0.002644,60049.0,60048.0,1.238131]
[1726421349838,0.002644,60049.0,60048.0,1.231131]
[1726421350058,0.002644,60049.0,60048.0,1.245131]
[1726421350270,0.001644,60049.0,60048.0,1.236131]
[1726421350502,0.001644,60049.0,60048.0,1.250131]
[1726421350738,0.002644,60049.0,60048.0,1.250131]
[1726421351890,0.002644,60049.0,60048.0,0.917065]
[1726421353232,0.002644,60049.0,60048.0,0.894065]
[1726421354132,0.002644,60049.0,60048.0,0.860665]
[1726421355281,0.002644,60049.0,60048.0,0.894065]
[1726421360447,0.002644,60049.0,60048.0,0.860665]
[1726421363322,0.002644,60049.0,60048.0,0.894065]
[1726421363950,0.002644,60049.0,60048.0,1.227131]
[1726421364182,0.002644,60049.0,60048.0,0.894065]
[1726421364618,0.002644,60049.0,60048.0,1.227131]
[1726421366163,0.002644,60049.0,60048.0,0.894065]
[1726421366595,0.00253371,60049.0,60048.0,0.894065]
[1726421367706,0.00253371,60049.0,60048.0,1.227131]
[1726421367917,0.00253371,60049.0,60048.0,0.894065]
[1726421369462,0.00253371,60049.0,60048.0,1.227131]
[1726421369670,0.00253371,60049.0,60048.0,0.894065]
[1726421370316,0.00253371,60049.0,60048.0,1.227131]
[1726421370529,0.00253371,60049.0,60048.0,1.23693719]
[1726421371176,0.00253371,60049.0,60048.0,1.25993719]
[1726421372617,0.00253371,60049.0,60048.0,1.309758]
[1726421373046,0.00253371,60049.0,60048.0,1.25993719]
[1726421373519,0.00253371,60049.0,60048.0,1.59300319]
[1726421373962,0.00253371,60049.0,60048.0,2.0677748]
[1726421374388,0.00253371,60049.0,60048.0,2.0678009]
[1726421374641,0.00253371,60049.0,60048.0,1.76161921]
[1726421374852,0.00253371,60049.0,60048.0,1.63706717]
[1726421375075,0.00253371,60049.0,60048.0,1.76161921]
[1726421375298,0.0001,60079.0,60057.0,1.188556]
[1726421375523,0.0001,60079.0,60057.0,0.85554]
[1726421375746,0.166452,60078.0,60057.0,0.85554]
[1726421375973,0.0001,60079.0,60057.0,0.85554]
[1726421375974,0.166453,60077.0,60057.0,0.85554]
[1726421376189,0.166453,60077.0,60057.0,0.166508]
[1726421376190,0.192228,60073.0,60057.0,0.166508]
[1726421376619,0.192228,60073.0,60057.0,0.171508]
[1726421376836,0.192228,60073.0,60057.0,0.508524]
[1726421377051,0.192228,60073.0,60057.0,0.175508]
[1726421377516,0.192228,60073.0,60057.0,0.009]
[1726421377723,0.332926,60074.0,60057.0,0.009]
[1726421377724,0.166478,60068.0,60057.0,0.009]
[1726421378375,0.1961358,60069.0,60057.0,0.009]
[1726421378604,0.02612595,60066.0,60057.0,0.009]
[1726421380967,0.19260995,60066.0,60057.0,0.009]
[1726421381667,0.166486,60065.0,60057.0,0.009]
[1726421381917,0.166493,60063.0,60057.0,0.009]
[1726421382134,0.02612595,60066.0,60057.0,0.009]
[1726421382135,0.166488,60065.0,60057.0,0.009]
[1726421383156,0.166489,60064.0,60057.0,0.009]
[1726421383609,0.1713379,60058.0,60057.0,0.009]
[1726421383860,0.3541379,60058.0,60057.0,0.009]
[1726421384299,1.3475599,60058.0,60057.0,0.009]
[1726421384768,1.0145489,60058.0,60057.0,0.009]
[1726421385447,1.0145489,60058.0,60057.0,0.005]
[1726421386160,0.166512,60056.0,60048.0,0.001644]
[1726421387291,0.166514,60055.0,60048.0,0.001644]
[1726421388394,0.166514,60055.0,60048.0,0.05145449]
[1726421388856,0.003,60056.0,60048.0,0.05145449]
[1726421388857,0.166517,60054.0,60048.0,0.001644]
[1726421389077,0.8480439,60058.0,60049.0,0.16653]
[1726421389297,0.8480439,60058.0,60048.0,0.001644]
[1726421389298,0.166513,60056.0,60048.0,0.05145449]
[1726421389518,0.166518,60054.0,60049.0,0.04981049]
[1726421390196,0.166519,60053.0,60049.0,0.04981049]
[1726421390414,0.166519,60053.0,60050.0,0.04981049]
[1726421390849,0.000822,60055.0,60050.0,0.21633649]
[1726421391067,0.000822,60055.0,60050.0,0.04981049]
[1726421391543,0.000822,60055.0,60052.0,0.04981049]
[1726421392491,0.166519,60053.0,60052.0,0.04981049]
[1726421393004,0.499558,60053.0,60052.0,0.04981049]
[1726421393240,1.165636,60053.0,60052.0,0.04981049]
[1726421393480,0.499575,60051.0,60050.0,0.04981049]
[1726421393734,0.499591,60049.0,60048.0,0.05145449]
[1726421394002,0.499591,60049.0,60048.0,0.001644]
[1726421394717,0.333043,60053.0,60048.0,0.001644]
[1726421394954,0.359165,60054.0,60048.0,0.05161644]
[1726421394955,0.166529,60050.0,60048.0,0.05161644]
[1726421395208,0.166529,60050.0,60048.0,0.05461644]
[1726421395673,0.166522,60052.0,60048.0,0.05861644]
[1726421395888,0.166522,60052.0,60048.0,0.05561644]
[1726421396350,0.166522,60052.0,60048.0,0.05161644]
[1726421396601,0.166522,60052.0,60048.0,0.05461644]
[1726421396850,0.166522,60052.0,60048.0,0.05661644]
[1726421397084,0.333035,60054.0,60048.0,0.05361644]
[1726421397329,0.333035,60054.0,60048.0,0.05461644]
[1726421397330,0.166522,60052.0,60048.0,0.05461644]
[1726421397615,0.499561,60053.0,60048.0,0.05261644]
[1726421397882,0.166523,60052.0,60048.0,0.05261644]
[1726421398359,0.33304,60053.0,60048.0,0.05261644]
[1726421398360,0.499591,60049.0,60048.0,0.05261644]
[1726421398583,0.832652,60049.0,60048.0,0.002644]
[1726421399082,0.832652,60049.0,60048.0,0.001644]
[1726421399792,1.545641,60049.0,60048.0,0.001644]
[1726421400012,1.847741,60049.0,60048.0,0.001644]
[1726421400239,1.847741,60049.0,60048.0,0.005644]
[1726421400713,0.832777,60040.0,60039.0,0.001644]
[1726421401642,0.499708,60035.0,60034.0,0.04997244]
[1726421401862,0.499708,60035.0,60028.0,0.04995055]
[1726421401863,0.166586,60029.0,60028.0,0.04995055]
[1726421402091,0.333161,60031.0,60027.0,0.04995055]
[1726421402314,0.166589,60028.0,60025.0,0.07113482]
[1726421402544,0.166589,60028.0,60025.0,0.02118427]
[1726421402782,0.192228,60036.0,60022.0,0.04995055]
[1726421402783,0.499774,60027.0,60022.0,0.04995055]
[1726421403018,1.020657,60027.0,60022.0,0.04995055]
[1726421403240,0.687474,60027.0,60022.0,0.04995055]
[1726421403456,0.989574,60027.0,60018.0,0.04995055]
[1726421403717,1.322757,60027.0,60017.0,0.04995055]
[1726421404180,0.989574,60027.0,60017.0,0.04995055]
[1726421404457,1.322757,60027.0,60017.0,0.04995055]
[1726421404696,1.322757,60027.0,60015.0,0.21657355]
[1726421404948,1.325757,60027.0,60015.0,0.21657355]
[1726421405401,1.324757,60027.0,60015.0,0.04995055]
[1726421405647,0.166625,60015.0,60014.0,0.001644]
[1726421406098,0.166622,60016.0,60014.0,0.001644]
[1726421406325,0.192228,60022.0,60014.0,0.001644]
[1726421406557,0.166624,60016.0,60014.0,0.001644]
[1726421406787,0.166625,60015.0,60014.0,0.001644]
[1726421406999,0.499875,60015.0,60014.0,0.001644]
[1726421407889,0.002,60015.0,60014.0,0.188271]
[1726421408106,0.002,60015.0,60014.0,0.844781]
[1726421408107,0.001,60015.0,60014.0,0.844781]
[1726421408334,0.02614266,60025.0,60019.0,0.333227]
[1726421408553,0.02614266,60025.0,60020.0,0.166609]
[1726421408770,0.02614266,60025.0,60021.0,0.166606]
[1726421408984,0.02614266,60025.0,60019.0,0.333227]
[1726421409209,0.19274066,60025.0,60020.0,0.166608]
[1726421409631,0.20174066,60025.0,60020.0,0.166608]
[1726421409635,0.166602,60024.0,60019.0,0.001]
[1726421409836,0.166603,60023.0,60019.0,0.001]
[1726421410264,0.166611,60020.0,60019.0,0.001]
[1726421410491,0.499833,60020.0,60019.0,0.001]
[1726421411132,0.166608,60021.0,60016.0,0.16662]
[1726421411419,0.3332,60024.0,60019.0,0.002]
[1726421411926,0.499818,60022.0,60019.0,0.002]
[1726421412232,0.333209,60023.0,60014.0,0.000644]
[1726421412494,0.333217,60021.0,60016.0,0.001]
[1726421412762,0.02614266,60025.0,60016.0,0.002]
[1726421413034,0.166619,60017.0,60016.0,0.001]
[1726421413520,0.499857,60017.0,60016.0,0.001]
[1726421413765,0.499875,60015.0,60014.0,0.000644]
[1726421414254,0.833125,60015.0,60014.0,0.000644]
[1726421414564,1.689003,60015.0,60014.0,0.000644]
[1726421415474,1.692003,60015.0,60014.0,0.000644]
[1726421415713,1.166392,60014.0,60013.0,0.000822]
[1726421416376,0.83322,60008.0,59999.0,0.467323]
[1726421416590,1.025448,60008.0,59999.0,0.467323]
[1726421417030,1.555236,60008.0,59999.0,0.000823]
[1726421418276,0.833332,60000.0,59999.0,0.000823]
[1726421419491,1.358893,60000.0,59999.0,0.000823]
[1726421419769,0.52615262,60000.0,59999.0,0.000823]
[1726421420018,0.02615362,60000.0,59999.0,0.167492]
[1726421420269,0.02615362,60000.0,59999.0,0.000823]
[1726421420510,0.02615362,60000.0,59999.0,0.167492]
[1726421420747,0.02615362,60000.0,59999.0,0.001823]
[1726421421218,0.02615362,60000.0,59999.0,0.168492]
[1726421421933,0.02615362,60000.0,59999.0,0.001823]
[1726421422203,0.02615362,60000.0,59999.0,0.005823]
[1726421422660,0.19281962,60000.0,59999.0,0.005823]
[1726421422882,0.19381962,60000.0,59999.0,0.009823]
[1726421423323,0.86048562,60000.0,59999.0,0.009823]
[1726421423987,0.85948562,60000.0,59999.0,0.005823]
[1726421424205,0.52615262,60000.0,59999.0,0.005823]
[1726421424433,0.52615262,60000.0,59999.0,0.000823]
[1726421424434,0.499999,60000.0,59999.0,0.000823]
[1726421424649,0.502999,60000.0,59999.0,0.000823]
[1726421424931,0.499999,60000.0,59999.0,0.000823]
[1726421425155,0.166651,60006.0,59999.0,0.001823]
[1726421425376,0.006,60000.0,59999.0,0.001823]
[1726421425595,0.002,60000.0,59999.0,0.000823]
[1726421426038,0.168666,60000.0,59999.0,0.000823]
[1726421426485,0.166662,60002.0,59999.0,0.000823]
[1726421426911,0.005,60000.0,59999.0,0.000823]
[1726421427793,0.166664,60001.0,59999.0,0.000823]
[1726421428007,0.166664,60001.0,59999.0,0.001823]
[1726421428238,0.007,60002.0,59999.0,0.001823]
[1726421428239,0.833332,60000.0,59999.0,0.000823]
[1726421428679,0.841332,60000.0,59999.0,0.000823]
[1726421428893,0.86748529,60000.0,59999.0,0.000823]
[1726421430052,1.20081829,60000.0,59999.0,0.000823]
[1726421430269,1.19581829,60000.0,59999.0,0.000823]
[1726421430485,1.19581829,60000.0,59999.0,0.001823]
[1726421430921,1.19581829,60000.0,59999.0,0.000823]
[1726421431132,1.20081829,60000.0,59999.0,0.000823]
[1726421432245,0.86748529,60000.0,59999.0,0.000823]
[1726421432469,0.03415329,60000.0,59999.0,0.000823]
[1726421433146,0.53415229,60000.0,59999.0,0.000823]
[1726421434262,0.20081929,60000.0,59999.0,0.000823]
[1726421434961,0.53415229,60000.0,59999.0,0.000823]
[1726421435180,0.86748529,60000.0,59999.0,0.000823]
[1726421437458,1.20081829,60000.0,59999.0,0.000823]
[1726421437684,1.39091829,60000.0,59999.0,0.000823]
[1726421438169,0.833415,59994.0,59993.0,0.000823]
[1726421439055,1.166781,59994.0,59993.0,0.000823]
[1726421439319,0.192228,59995.0,59979.0,0.034222]
[1726421439320,0.83347,59990.0,59979.0,0.034222]
[1726421439545,1.359086,59990.0,59979.0,0.000822]
[1726421440861,1.38524437,59990.0,59979.0,0.000822]
[1726421441086,1.05185637,59990.0,59979.0,0.000822]
[1726421441303,0.85962837,59990.0,59979.0,0.000822]
[1726421441533,0.5001,59988.0,59979.0,0.000822]
[1726421441998,1.1669,59988.0,59979.0,0.000822]
[1726421442210,0.8335,59988.0,59979.0,0.000822]
[1726421442664,0.8365,59988.0,59979.0,0.000822]
[1726421443107,1.1699,59988.0,59979.0,0.000822]
[1726421443331,0.8365,59988.0,59979.0,0.000822]
[1726421443571,1.1739,59988.0,59979.0,0.000822]
[1726421443793,0.8405,59988.0,59979.0,0.000822]
[1726421446228,1.1739,59988.0,59979.0,0.000822]
[1726421446448,0.8405,59988.0,59979.0,0.000822]
[1726421446659,0.8705,59988.0,59979.0,0.000822]
[1726421447130,1.3059,59988.0,59979.0,0.000822]
[1726421447347,1.3039,59988.0,59979.0,0.000822]
[1726421448059,0.83361,59980.0,59979.0,0.000822]
[1726421448272,1.025838,59980.0,59979.0,0.000822]
[1726421448511,1.359282,59980.0,59979.0,0.000822]
[1726421448731,1.38544382,59980.0,59979.0,0.000822]
[1726421449476,1.38544382,59980.0,59978.0,0.001644]
[1726421449477,1.297075,59979.0,59978.0,0.001644]
[1726421449709,0.69246,59972.0,59971.0,0.0055518]
[1726421449924,0.83372,59972.0,59971.0,0.0055518]
[1726421450372,0.85988795,59972.0,59971.0,0.0055518]
[1726421450588,1.05211595,59972.0,59971.0,0.0055518]
[1726421450875,1.38560395,59972.0,59971.0,0.0055518]
[1726421451089,1.39960395,59972.0,59971.0,0.0055518]
[1726421451530,1.05211595,59972.0,59971.0,0.0055518]
[1726421451959,1.05211595,59972.0,59971.0,0.0065518]
[1726421451960,1.07611595,59972.0,59971.0,0.0065518]
[1726421452619,0.88388795,59972.0,59971.0,0.0065518]
[1726421453053,0.86988795,59972.0,59971.0,0.0055518]
[1726421453274,0.85988795,59972.0,59971.0,0.0055518]
[1726421453704,0.86488795,59972.0,59971.0,0.0055518]
[1726421454585,0.20891195,59972.0,59971.0,0.0055518]
[1726421454817,0.53139995,59972.0,59971.0,0.0055518]
[1726421455033,1.05711595,59972.0,59971.0,0.0055518]
[1726421455269,1.06311595,59972.0,59971.0,0.0055518]
[1726421456626,1.036948,59972.0,59971.0,0.0055518]
[1726421457308,0.70346,59972.0,59971.0,0.0055518]
[1726421457543,1.036948,59972.0,59971.0,0.0055518]
[1726421457796,0.84472,59972.0,59971.0,0.0055518]
[1726421458520,1.222548,59972.0,59971.0,0.0055518]
[1726421458752,1.556036,59972.0,59971.0,0.0055518]
[1726421459987,1.58220242,59972.0,59971.0,0.0055518]
[1726421466082,1.71420242,59972.0,59971.0,0.0055518]
[1726421466569,1.688036,59972.0,59971.0,0.0055518]
[1726421467025,2.019524,59972.0,59971.0,0.0055518]
[1726421468663,1.656036,59972.0,59971.0,0.0055518]
[1726421469117,1.278208,59972.0,59971.0,0.0055518]
[1726421469387,1.278208,59972.0,59971.0,0.1722988]
[1726421469388,0.011,59972.0,59971.0,0.1722988]
[1726421469604,0.011,59972.0,59971.0,0.0055518]
[1726421470030,0.511232,59972.0,59971.0,0.0055518]
[1726421470284,0.84472,59972.0,59971.0,0.0055518]
[1726421470501,0.83872,59972.0,59971.0,0.0055518]
[1726421470725,0.500232,59972.0,59971.0,0.0055518]
[1726421470940,0.507232,59972.0,59971.0,0.0065518]
[1726421471162,0.501232,59972.0,59971.0,0.0055518]
[1726421471402,0.001,59972.0,59971.0,0.0055518]
[1726421471706,0.007,59972.0,59971.0,0.0065518]
[1726421472380,0.1929019,59975.0,59971.0,0.0055518]
[1726421472597,0.005,59972.0,59971.0,0.0055518]
[1726421473280,0.0261659,59975.0,59974.0,0.166738]
[1726421473500,0.0261659,59975.0,59974.0,0.833692]
[1726421473720,0.0341659,59975.0,59974.0,0.500215]
[1726421473945,0.0341659,59975.0,59974.0,0.166738]
[1726421474167,0.0261659,59975.0,59974.0,0.500215]
[1726421474387,0.0261659,59975.0,59972.0,0.166742]
[1726421474636,0.0261659,59975.0,59972.0,0.333487]
[1726421474854,0.0261659,59975.0,59974.0,0.001]
[1726421475073,0.001646,59978.0,59974.0,0.166737]
[1726421475294,0.001646,59978.0,59975.0,0.166734]
[1726421475548,0.001646,59978.0,59974.0,0.500213]
[1726421475807,0.001646,59978.0,59971.0,0.3410458]
[1726421475808,0.168373,59978.0,59971.0,0.0075518]
[1726421476027,0.168373,59978.0,59971.0,0.0055518]
[1726421476241,0.171373,59978.0,59973.0,0.16674]
[1726421476491,0.171373,59978.0,59971.0,0.0055518]
[1726421476492,0.166736,59975.0,59971.0,0.0055518]
[1726421476920,0.166739,59974.0,59971.0,0.0055518]
[1726421479230,0.333467,59976.0,59971.0,0.0055518]
[1726421479440,0.168374,59978.0,59973.0,0.16674]
[1726421479656,0.001646,59978.0,59971.0,0.1722968]
[1726421479881,0.166735,59976.0,59971.0,0.1732968]
[1726421480314,0.166732,59977.0,59972.0,0.166742]
[1726421480527,0.001,59976.0,59972.0,0.166742]
[1726421481853,0.166732,59977.0,59972.0,0.166742]
[1726421482058,0.002,59976.0,59972.0,0.166742]
[1726421483324,0.003,59976.0,59972.0,0.166742]
[1726421483560,0.001,59976.0,59971.0,0.0055518]
[1726421483825,1.359436,59972.0,59971.0,0.0055518]
[1726421484841,1.489436,59972.0,59971.0,0.0055518]
[1726421485057,1.489436,59972.0,59971.0,0.0065518]
[1726421485058,1.824924,59972.0,59971.0,0.0065518]
[1726421485322,1.833924,59972.0,59971.0,0.0065518]
[1726421485547,1.831924,59972.0,59971.0,0.0055518]
[1726421485765,1.833924,59972.0,59971.0,0.0055518]
[1726421485996,1.844924,59972.0,59971.0,0.0055518]
[1726421486251,2.01616421,59972.0,59971.0,0.0055518]
[1726421486490,1.831924,59972.0,59971.0,0.0055518]
[1726421486744,1.843924,59972.0,59971.0,0.0055518]
[1726421487024,1.822924,59972.0,59971.0,0.0055518]
[1726421487260,1.847924,59972.0,59971.0,0.0055518]
[1726421488726,1.874092,59972.0,59971.0,0.0055518]
[1726421489609,1.876092,59972.0,59971.0,0.0055518]
[1726421490752,2.04733221,59972.0,59971.0,0.0055518]
[1726421491695,1.876092,59972.0,59971.0,0.0055518]
[1726421492155,0.03,59966.0,59965.0,0.001644]
[1726421492387,0.500341,59959.0,59958.0,0.000823]
[1726421492605,2.018952,59959.0,59958.0,0.000823]
[1726421492822,2.045125,59959.0,59958.0,0.000823]
[1726421493044,2.175125,59959.0,59958.0,0.000823]
[1726421494422,1.197519,59956.0,59955.0,0.0006348]
[1726421494693,1.297519,59956.0,59955.0,0.0006348]
[1726421495168,1.631096,59956.0,59955.0,0.0006348]
[1726421495407,1.297561,59954.0,59943.0,0.4665]
[1726421495655,1.489789,59954.0,59943.0,0.4665]
[1726421495930,1.823378,59954.0,59943.0,0.4665]
[1726421496188,1.825378,59954.0,59943.0,0.4665]
[1726421496445,1.823378,59954.0,59943.0,0.4665]
[1726421496684,1.167754,59944.0,59943.0,0.4665]
[1726421496930,0.834167,59940.0,59939.0,0.000823]
[1726421497198,1.026395,59940.0,59939.0,0.000823]
[1726421497417,1.360062,59940.0,59939.0,0.000823]
[1726421498144,1.3862425,59940.0,59939.0,0.000823]
[1726421498425,2.51913375,59940.0,59939.0,0.000823]
[1726421498704,2.18046675,59940.0,59939.0,0.000823]
[1726421499228,2.18946675,59940.0,59939.0,0.000823]
[1726421499728,2.18046675,59940.0,59939.0,0.000823]
[1726421500017,2.19446675,59940.0,59939.0,0.000823]
[1726421500223,2.20646675,59940.0,59939.0,0.000823]
[1726421500465,2.21946675,59940.0,59939.0,0.000823]
[1726421500702,2.23346675,59940.0,59939.0,0.000823]
[1726421500950,2.62713375,59940.0,59939.0,0.000823]
[1726421501180,2.61313375,59940.0,59939.0,0.000823]
[1726421501424,1.823828,59936.0,59935.0,0.0039078]
[1726421501711,1.908828,59936.0,59935.0,0.0039078]
[1726421501954,1.908828,59936.0,59927.0,0.000823]
[1726421501955,1.490255,59930.0,59927.0,0.000823]
[1726421502204,1.825977,59930.0,59927.0,0.000823]
[1726421502467,2.08021721,59930.0,59927.0,0.000823]
[1726421502694,1.74768353,59930.0,59927.0,0.000823]
[1726421503150,1.90317753,59930.0,59927.0,0.000823]
[1726421503380,2.11840553,59930.0,59927.0,0.000823]
[1726421503835,2.12859913,59930.0,59927.0,0.000823]
[1726421504062,2.14259913,59930.0,59927.0,0.000823]
[1726421504288,2.12859913,59930.0,59927.0,0.000823]
[1726421504732,2.14159913,59930.0,59927.0,0.000823]
[1726421505650,2.10241081,59930.0,59927.0,0.000823]
[1726421506147,2.11641081,59930.0,59927.0,0.000823]
[1726421506368,1.75968881,59930.0,59927.0,0.000823]
[1726421506858,1.5884486,59930.0,59927.0,0.000823]
[1726421510264,1.61463736,59930.0,59927.0,0.000823]
[1726421511544,1.95035936,59930.0,59927.0,0.000823]
[1726421511988,1.94835936,59930.0,59927.0,0.000823]
[1726421512893,1.95035936,59930.0,59927.0,0.000823]
[1726421513112,2.12159957,59930.0,59927.0,0.000823]
[1726421514462,2.11959957,59930.0,59927.0,0.000823]
[1726421514682,2.12159957,59930.0,59927.0,0.000823]
[1726421515813,1.1567,59918.0,59914.0,0.4665]
[1726421516069,1.1567,59918.0,59912.0,0.000824]
[1726421516070,1.807059,59918.0,59912.0,0.000824]
[1726421516287,1.809059,59918.0,59912.0,0.000824]
[1726421517188,1.823059,59918.0,59912.0,0.000824]
[1726421517415,1.809059,59918.0,59912.0,0.000824]
[1726421517676,1.821059,59918.0,59912.0,0.000824]
[1726421517867,1.833059,59918.0,59912.0,0.000824]
[1726421518110,1.403931,59918.0,59912.0,0.000824]
[1726421518331,1.433931,59918.0,59912.0,0.000824]
[1726421518546,1.640159,59918.0,59912.0,0.000824]
[1726421518981,1.626159,59918.0,59912.0,0.000824]
[1726421519199,1.640159,59918.0,59917.0,0.0034078]
[1726421519649,1.626159,59918.0,59917.0,0.0034078]
[1726421519867,1.296261,59918.0,59917.0,0.0034078]
[1726421520088,1.282261,59918.0,59917.0,0.0034078]
[1726421520343,0.948472,59918.0,59917.0,0.0034078]
[1726421520560,0.514683,59918.0,59917.0,0.0034078]
[1726421520795,0.500683,59918.0,59917.0,0.0034078]
[1726421521018,0.514683,59918.0,59917.0,0.0034078]
[1726421521235,0.014,59918.0,59917.0,0.0034078]
[1726421521496,0.35996326,59922.0,59917.0,0.0034078]
[1726421521722,0.008,59918.0,59917.0,0.0034078]
[1726421521960,0.008,59918.0,59917.0,0.1703048]
[1726421522212,1.2247,59918.0,59917.0,0.0034078]
[1726421522480,1.906278,59918.0,59917.0,0.0034078]
[1726421522724,1.892278,59918.0,59917.0,0.0034078]
[1726421522983,2.06551821,59918.0,59917.0,0.0042318]
[1726421523221,1.72972921,59918.0,59917.0,0.0042318]
[1726421523495,1.72172921,59918.0,59917.0,0.0042318]
[1726421523975,0.600683,59918.0,59917.0,0.0042318]
[1726421524251,0.514683,59918.0,59917.0,0.0042318]
[1726421524517,0.014,59918.0,59917.0,0.0042318]
[1726421524753,0.180894,59918.0,59917.0,0.0042318]
[1726421524981,0.014,59918.0,59917.0,0.0042318]
[1726421525204,0.001648,59932.0,59917.0,0.0042318]
[1726421525443,0.166886,59921.0,59917.0,0.0042318]
[1726421525677,0.014,59918.0,59917.0,0.1711288]
[1726421525921,0.02618821,59923.0,59919.0,0.166889]